[Event "Grand Prix Romania 1st Stage 2024"]
[Site "Bucuresti"]
[Date "2024.03.23"]
[Round "2.20"]
[White "Ghita, Vlad-Bogdan"]
[Black "Jianu, Vlad-Cristian"]
[Result "0-1"]
[ECO "B12"]
[WhiteElo "1906"]
[BlackElo "2491"]
[Annotator "TA"]
[PlyCount "78"]
[EventDate "2024.03.20"]
[EventType "swiss"]
[EventCountry "ROU"]
[SourceTitle "playchess.com"]
[Source "ChessBase"]
[SourceQuality "1"]
[TimeControl "900+5"]

{[%evp 9,78,0,0,-6,-2,0,0,0,0,0,0,0,9,0,0,0,7,-15,-2,0,18,-18,0,-20,29,12,37,-98,48,42,45,47,358,0,0,0,0,0,0,0,0,0,0,0,6,0,121,37,27,-253,-55,-64,44,72,31,0,31,-169,-163,-1069,-49,-29991,-29992,-29993,-1878,-1727,-1697,-1615,-1571,-1350,-887]} 1. e4 {[%emt 0:00:02]} c6 {[%emt 0:00:01]} 2. d4 {[%emt 0:00:04]} d5 {[%emt 0:00:01]} 3. e5 {[%emt 0:00:03]} c5 {[%emt 0:00:01]} 4. dxc5 {[%emt 0:00:01]} e6 {[%emt 0:00:01]} 5. a3 {[%emt 0:00:01]} Bxc5 {[%emt 0:00:02]} 6. b4 {[%emt 0:00:01]} Be7 {[%emt 0:00:01]} 7. Qg4 {[%emt 0:00:08]} g6 {[%emt 0:00:37]} 8. Nf3 {[%emt 0:00:29] The position is equal.} a5 {[%emt 0:00:31]} 9. b5 {[%emt 0:00:02]} h5 {[%emt 0:00:37]} 10. Qf4 {[%emt 0:00:26]} Nh6 {[%emt 0:00:21]} 11. Bd3 {[%emt 0:00:03]} Nd7 {[%emt 0:00:16]} 12. O-O {[%emt 0:00:25]} Nc5 {[%emt 0:00:24]} 13. Nd4 {[%emt 0:00:09]} Bd7 {[%emt 0:00:28]} 14. a4 {[%emt 0:00:03]} Qc7 {[%emt 0:00:12]} 15. Re1 {[%emt 0:00:45]} g5 {[%emt 0:00:52]} 16. Qg3 {[%emt 0:01:34]} Rg8 {[%emt 0:00:34]} (16... h4 $142 17. Qe3 f5) 17. Nd2 $11 {[%emt 0:01:01][%cal Bb1d2,Bd2b3,Bb3d4,Bd4f3,Bf3g5][%mdl 32]} h4 {[%emt 0:01:58]} 18. Qe3 {[%emt 0:00:18]} (18. Qf3 $14) 18... Rc8 {[%emt 0:00:24]} (18... Ng4 $17 19. Qe2 Qxe5 20. Qxe5 (20. Qxg4 $2 Qxe1+ 21. Bf1 e5 $19) 20... Nxe5) 19. N2b3 $14 {[%emt 0:00:13]} b6 {[%emt 0:01:14]} 20. Qe2 {[%emt 0:00:03]} Nf5 $2 {[%emt 0:00:29][%mdl 8192]} (20... Nxd3 $14 21. cxd3 Bb4) 21. Qh5 $2 {[%emt 0:01:52]} (21. Bxf5 $18 Nxb3 22. cxb3) 21... Nxd3 $11 {[%emt 0:01:24]} 22. cxd3 {[%emt 0:00:17]} Nxd4 {[%emt 0:00:02]} 23. Nxd4 {[%emt 0:00:07]} Qc3 {[%emt 0:00:02][%csl LRa1,LRd3,LRd4,LRe1][%cal Rc3e1]} 24. Be3 {[%emt 0:00:08]} Qxd3 {[%emt 0:00:01]} 25. Nf3 {[%emt 0:01:03][%csl LRb6,LRg5]} Bd8 {[%emt 0:01:07]} 26. Nxg5 {[%emt 0:00:09]} (26. Bxg5 Qf5 27. Qxh4 Bxg5 $19) 26... Qf5 {[%emt 0:01:15][%cal Rd8g5]} 27. f4 {[%emt 0:00:02]} d4 {[%emt 0:00:09]} 28. Bd2 {[%emt 0:00:57]} (28. Bxd4 $16 {Be3 is the strong threat.} Rc2 29. Be3 (29. Qxh4 Bxg5 30. fxg5 Rxg2+ 31. Kxg2 Rxg5+ $17)) 28... Rc2 $14 {[%emt 0:00:19]} 29. Qd1 {[%emt 0:00:19][%mdl 8192] [#]} (29. Red1 $1 $11 {and White has nothing to worry.}) 29... Qd3 $2 {[%emt 0:00:32]} (29... Rxg5 $1 $19 30. fxg5 Bxg5 31. Qxc2 Qxc2 32. Bxg5 h3 33. gxh3 Qf5) 30. Ne4 {[%emt 0:00:26][%cal Oa1a3] And now Ra3! would win.} h3 {[%emt 0:00:14] Black is more active.} (30... Be7 $1 $15 31. Qe2 Qxe2 32. Rxe2 d3) 31. g3 {[%emt 0:00:29]} Be7 {[%emt 0:00:09] Prevents Ra3.} 32. Qe2 {[%emt 0:00:54]} Qb3 {[%emt 0:00:25]} 33. Qf2 $2 {[%emt 0:00:57] [#]} (33. Rec1 $14 {keeps the upper hand.}) 33... Bc8 $1 $40 {[%emt 0:01:00][%mdl 128] White must now prevent ...Bb7. Black wants a kill.} 34. Qxd4 $2 {[%emt 0:00:45]} (34. Rab1 Qd5 (34... Qxa4 35. f5 $17) 35. Rbc1 Rxc1 36. Rxc1 Qxe4 (36... Bb7 $2 37. Re1 $19) 37. Rxc8+ Kd7 (37... Bd8 38. Bc1 $15) 38. Rc4 (38. Rxg8 {is a self mate.} Bc5 39. Rh8 d3 40. Rxh3 Bxf2+ 41. Kxf2 Qe2+ 42. Kg1 Qd1+ 43. Kg2 Qxd2+ 44. Kg1 Qe3+ 45. Kg2 Qe2+ 46. Kg1 d2 47. Rh8 d1=Q#)) 34... Bb7 $2 {[%emt 0:00:01]} ({Black should try} 34... Bc5 $19 35. Qxc5 bxc5) 35. Rab1 $2 {[%emt 0:01:00][%mdl 8192] White is weak on the light squares} (35. Re3 $15 Qd5 36. Qxd5 Bxd5 37. Rd1) 35... Qf3 {[%emt 0:00:34][%csl Gh3][%cal Rf3g2]} 36. Qf2 {[%emt 0:02:33]} Bxe4 {[%emt 0:00:15]} (36... Bc5 $142 37. Re3 Bxe3 (37... Bxe4 $2 38. Rxf3 Rxd2 39. Qxc5 $19) 38. Bxe3 Rxf2 (38... Qxe4 {gets mated.} 39. Qxc2 Qxc2 40. Kf1) 39. Nf6+ Kf8 40. Bc5+ bxc5 41. Nd7+ Ke7 42. Nxc5 Qg2#) 37. Qxf3 {[%emt 0:00:04] Black is clearly winning.} Bxf3 {[%emt 0:00:02] A strong pair of Bishops.} 38. Kf2 {[%emt 0:00:09]} Bg4 {[%emt 0:00:12]} 39. Ke3 {[%emt 0:00:01]} Bc5+ {[%emt 0:00:02] Never resign too early!   Weighted Error Value: White=0.67/Black=0.59.  Loses game:     	White=3     	Black=1      Missed win:     	White=1     	Black=2      Mistake:       	White=3     	Black=4      Inaccurate:     	White=2     	Black=1      OK:         	White=12    	Black=11     Best:        	White=2     	---        Strong:       	---       	Black=1} 0-1

[Event "Grand Prix Romania 1st Stage 2024"]
[Site "Bucuresti"]
[Date "2024.03.23"]
[Round "2.21"]
[White "Parligras, Mircea-Emilian"]
[Black "Dorache, Florin"]
[Result "1-0"]
[ECO "D12"]
[WhiteElo "2543"]
[BlackElo "1948"]
[Annotator "TA"]
[PlyCount "101"]
[EventDate "2024.03.20"]
[EventType "swiss"]
[EventCountry "ROU"]
[SourceTitle "playchess.com"]
[Source "ChessBase"]
[SourceQuality "1"]
[TimeControl "900+5"]

{[%evp 13,101,29,23,12,48,49,70,35,58,46,54,54,55,61,83,47,62,53,60,55,87,55,60,63,62,66,49,50,97,95,88,96,124,133,123,112,195,202,225,233,239,237,262,281,272,260,295,285,321,318,422,422,416,441,437,442,441,433,543,521,591,576,563,529,722,640,967,929,847,832,868,835,1905,1800,1863,1684,1687,1633,1718,1647,2672,2538,5265,2189,29966,29967,6477,6079,2490,2470]} 1. d4 {[%emt 0:00:03]} d5 {[%emt 0:00:02]} 2. c4 {[%emt 0:00:02]} c6 {[%emt 0:00:01]} 3. Nf3 {[%emt 0:00:02]} Nf6 {[%emt 0:00:01]} 4. e3 {[%emt 0:00:01]} Bf5 {[%emt 0:00:24]} 5. Nc3 {[%emt 0:00:03]} e6 {[%emt 0:00:08]} 6. Nh4 {[%emt 0:00:02]} Bg6 {[%emt 0:01:07]} 7. Nxg6 {[%emt 0:00:08]} hxg6 {[%emt 0:00:02]} 8. Bd2 {[%emt 0:00:14]} Bd6 {[%emt 0:00:22]} 9. Qb3 {[%emt 0:00:51]} Qc7 {[%emt 0:00:32]} 10. g3 {[%emt 0:00:13] White is slightly better.} dxc4 {[%emt 0:00:58]} 11. Qxc4 {[%emt 0:00:14]} Nbd7 {[%emt 0:00:34]} 12. Bg2 {[%emt 0:00:31]} O-O {[%emt 0:00:28]} 13. O-O {[%emt 0:00:20]} Rfe8 {[%emt 0:00:21]} 14. Rac1 {[%emt 0:00:10][%cal Oc3b5]} Rac8 {[%emt 0:00:14]} 15. Rfd1 {[%emt 0:00:12]} a6 {[%emt 0:00:20]} 16. Qe2 {[%emt 0:00:24]} Qb6 {[%emt 0:00:34][%cal Oe6e5]} 17. Be1 {[%emt 0:00:16]} e5 {[%emt 0:00:45]} 18. d5 {[%emt 0:01:17]} cxd5 {[%emt 0:01:01]} 19. Nxd5 {[%emt 0:00:06]} Nxd5 {[%emt 0:00:16]} 20. Bxd5 {[%emt 0:00:04]} Rxc1 {[%emt 0:00:11] White leaves nothing to chance now.} (20... Nf6 $14 21. Bb3 Bb4) 21. Rxc1 $16 {[%emt 0:00:02]} Nf6 {[%emt 0:00:16]} 22. Bb3 {[%emt 0:00:11]} Qd8 {[%emt 0:02:20]} 23. Rd1 {[%emt 0:00:54] aiming for Bb4.} Qe7 {[%emt 0:00:06]} 24. Qd3 {[%emt 0:00:19][%csl LRd6,LRg6] White is more active.} Bc7 {[%emt 0:00:50]} (24... Bb4 $16) 25. Qxg6 $18 {[%emt 0:00:17][%cal Oe1b4] And now Bb4! would win.} Rd8 {[%emt 0:01:39]} 26. Rxd8+ {[%emt 0:00:29]} Bxd8 {[%emt 0:00:05]} 27. Qf5 {[%emt 0:00:25]} Qd6 {[%emt 0:00:33]} 28. Bc3 {[%emt 0:00:15]} e4 {[%emt 0:01:44]} 29. Kg2 {[%emt 0:00:58]} Qe7 {[%emt 0:00:47]} 30. Bd4 {[%emt 0:00:36]} Nd7 {[%emt 0:00:31]} 31. h4 {[%emt 0:00:48]} Nf8 {[%emt 0:00:14]} 32. Qg4 {[%emt 0:00:49]} Ne6 {[%emt 0:00:06]} 33. Bxe6 {[%emt 0:00:09]} ({Less strong is} 33. Qxe4 Nxd4 34. Qxd4 g6 $18) 33... fxe6 {[%emt 0:00:01]} 34. Qxe4 {[%emt 0:00:03][%mdl 4096] Endgame. KQB-KQB} Qf7 {[%emt 0:00:08] [#]} 35. h5 $1 {[%emt 0:00:15]} Qe7 {[%emt 0:00:03] [#]} (35... Bf6 36. Bxf6) 36. h6 $1 {[%emt 0:00:48]} gxh6 {[%emt 0:00:01]} 37. Qg6+ {[%emt 0:00:01]} Kf8 {[%emt 0:00:05]} 38. Qxh6+ {[%emt 0:00:02]} Ke8 {[%emt 0:00:04]} 39. Qg6+ {[%emt 0:00:11]} Kd7 {[%emt 0:00:01]} 40. Qg7 {[%emt 0:00:02]} Qxg7 {[%emt 0:00:08]} 41. Bxg7 {[%emt 0:00:02] KB-KB} Kd6 {[%emt 0:00:05]} 42. f4 {[%emt 0:00:15]} b5 {[%emt 0:00:02]} 43. Kf3 {[%emt 0:00:09]} Ke7 {[%emt 0:00:03]} 44. b3 {[%emt 0:00:09]} Kf7 {[%emt 0:00:02]} 45. Bd4 {[%emt 0:00:02]} Kg6 {[%emt 0:00:08]} 46. g4 {[%emt 0:00:02]} Bc7 {[%emt 0:00:12]} 47. e4 {[%emt 0:00:02][%cal Be3e4,Be4f5][%mdl 32] Threatens to win with f5+.} Kf7 {[%emt 0:00:04]} 48. f5 {[%emt 0:00:02] Strongly threatening g5.} exf5 {[%emt 0:00:01]} 49. exf5 {[%emt 0:00:04]} Bd8 {[%emt 0:00:02]} 50. Ke4 {[%emt 0:00:05] Hoping for Be3.} Bg5 {[%emt 0:00:09]} 51. Kd5 {[%emt 0:00:03] Weighted Error Value: White=0.09 (flawless) /Black=0.27 (precise) .  Mistake:       	---       	Black=2      Inaccurate:     	White=3     	Black=4      OK:         	White=18    	Black=11     Best:        	---       	Black=2} 1-0

[Event "Grand Prix Romania 1st Stage 2024"]
[Site "Bucuresti"]
[Date "2024.03.23"]
[Round "2.22"]
[White "Nagy, Janos-Nandor"]
[Black "Zajic, Milan"]
[Result "0-1"]
[ECO "D00"]
[WhiteElo "1942"]
[BlackElo "2436"]
[Annotator "TA"]
[PlyCount "95"]
[EventDate "2024.03.20"]
[EventType "swiss"]
[EventCountry "ROU"]
[SourceTitle "playchess.com"]
[Source "ChessBase"]
[SourceQuality "1"]
[TimeControl "900+5"]

{[%evp 9,95,0,0,-9,2,-15,16,6,8,22,10,5,18,-19,75,0,0,-36,41,31,89,73,128,0,0,0,0,0,0,0,0,0,22,-23,-20,-20,-23,-5,0,0,0,0,0,-113,0,-125,-135,-147,-156,-145,-108,-95,-94,-160,-160,-181,-181,-174,-155,-190,-191,-166,-183,-224,-215,-249,-246,-376,-321,-387,-289,-425,-410,-418,-397,-602,-608,-590,-542,-687,-710,-723,-723,-858,-560,-575,-514,-560]} 1. d4 {[%emt 0:00:02]} Nf6 {[%emt 0:00:01]} 2. Nc3 {[%emt 0:00:04]} d5 {[%emt 0:00:12]} 3. Bf4 {[%emt 0:00:05]} e6 {[%emt 0:00:29]} 4. Nb5 {[%emt 0:00:08]} Na6 {[%emt 0:00:11]} 5. e3 {[%emt 0:00:04]} Be7 {[%emt 0:00:59]} 6. Nf3 {[%emt 0:00:17]} O-O {[%emt 0:00:03]} 7. h4 {[%emt 0:00:06]} c5 {[%emt 0:00:37]} 8. c3 {[%emt 0:00:12] The position is equal.} Bd7 {[%emt 0:01:11]} 9. a4 {[%emt 0:00:06]} c4 {[%emt 0:01:15]} 10. b3 {[%emt 0:00:22]} cxb3 {[%emt 0:00:41]} 11. Qxb3 {[%emt 0:01:09]} (11. Bd3 {is more complex.} Qa5 12. O-O b2 13. Rb1) 11... Rc8 {[%emt 0:01:22]} (11... Qa5 $1 $11) 12. Rc1 {[%emt 0:00:44]} (12. Nxa7 $2 {loses.} Rxc3 13. Qxc3 Bb4 $19) ({Better is} 12. Bd3 $16) 12... Qa5 $11 {[%emt 0:01:23]} 13. Bd3 {[%emt 0:05:50]} Nb8 {[%emt 0:03:34]} (13... Nb4 $15 14. cxb4 Rxc1+ 15. Ke2 Bxb5 16. bxa5 (16. Bxb5 Qxb5+ 17. axb5 Rxh1 $15) 16... Bxd3+ 17. Kxd3 Rxh1) 14. O-O $14 {[%emt 0:02:02]} Qb6 {[%emt 0:00:45] Prevents Nd6.} ({Black should try} 14... Rfd8 $14) 15. Qa2 {[%emt 0:00:58]} Nc6 {[%emt 0:00:25] [#]} (15... Qa5 $142) 16. Nd6 {[%emt 0:00:47]} ({White must play} 16. Rb1 $1 $16) 16... Bxd6 $1 $11 {[%emt 0:00:57]} 17. Bxd6 {[%emt 0:00:02][%cal Oc1b1] Black must now prevent Rb1!} Nxd4 $1 {[%emt 0:00:05]} 18. Bxf8 {[%emt 0:00:20] A strong pair of Bishops.} Nxf3+ {[%emt 0:00:02]} 19. gxf3 {[%emt 0:00:02]} Rxf8 {[%emt 0:00:10]} 20. a5 {[%emt 0:00:15]} Qc7 {[%emt 0:00:56]} 21. c4 {[%emt 0:00:14] [#] And now cxd5 would win.} d4 {[%emt 0:00:20]} 22. Qe2 {[%emt 0:00:57]} dxe3 {[%emt 0:00:27]} 23. Qxe3 {[%emt 0:00:14]} Qxa5 {[%emt 0:00:02]} 24. Ra1 {[%emt 0:00:56]} Qh5 {[%emt 0:00:02]} 25. Rxa7 {[%emt 0:00:36]} Qxh4 {[%emt 0:00:36]} 26. Ra5 {[%emt 0:00:05]} (26. Rfa1 $11 {keeps the balance.}) 26... h6 {[%emt 0:00:14]} (26... Nh5 $17 {Strongly threatening ...Nf4.} 27. Rg5 f5) 27. Kg2 {[%emt 0:00:27]} (27. Rfa1 $1 $11) 27... Bc6 $17 {[%emt 0:00:07]} 28. Rh1 {[%emt 0:00:15]} Qg4+ {[%emt 0:00:06]} 29. Kf1 {[%emt 0:00:01]} Qxf3 {[%emt 0:00:10]} 30. Qxf3 {[%emt 0:00:03]} Bxf3 {[%emt 0:00:01]} 31. Rg1 {[%emt 0:00:02]} (31. Rh3 $142 Bc6 32. Ke2) 31... Rd8 {[%emt 0:00:02]} 32. Be2 {[%emt 0:00:03]} Bc6 {[%emt 0:00:04]} 33. Rg3 {[%emt 0:00:05]} Kf8 {[%emt 0:00:06]} 34. Bf3 {[%emt 0:00:02]} Ne4 {[%emt 0:00:03]} 35. Bxe4 {[%emt 0:00:05]} Bxe4 $19 {[%emt 0:00:01][%mdl 4096] Endgame. KRR-KRB} 36. Re3 {[%emt 0:00:03]} Rd4 {[%emt 0:00:04]} 37. Rc5 {[%emt 0:00:17]} Bc6 {[%emt 0:00:08]} 38. f3 {[%emt 0:00:03]} (38. Rh3 $142) 38... Ke7 {[%emt 0:00:02]} 39. Rc3 {[%emt 0:00:06]} Kf6 {[%emt 0:00:12]} 40. Ra5 {[%emt 0:00:02]} (40. Rh5 $142) 40... g5 {[%emt 0:00:07]} 41. Kf2 {[%emt 0:00:02]} h5 {[%emt 0:00:03]} 42. Kg3 {[%emt 0:00:05]} (42. Ra8 $142) 42... h4+ {[%emt 0:00:02] Black is clearly winning.} 43. Kf2 {[%emt 0:00:04]} Rf4 {[%emt 0:00:02]} 44. Ke2 {[%emt 0:00:11]} h3 {[%emt 0:00:05]} 45. Ra1 {[%emt 0:00:03]} Kg6 {[%emt 0:00:18]} 46. Rh1 {[%emt 0:00:04]} Rh4 {[%emt 0:00:01] ...g4 is the strong threat.} 47. Rh2 {[%emt 0:00:02]} f5 {[%emt 0:00:02]} 48. Kf2 {[%emt 0:00:23] Weighted Error Value: White=0.45/Black=0.29 (precise) .  Mistake:       	White=8     	Black=5      Inaccurate:     	White=3     	Black=1      OK:         	White=9     	Black=14     Best:        	White=4     	Black=3      Strong:       	---       	Black=2      Brilliant:      	---       	Black=1} 0-1

[Event "Grand Prix Romania 1st Stage 2024"]
[Site "Bucuresti"]
[Date "2024.03.23"]
[Round "2.23"]
[White "Grigore, George-Gabriel"]
[Black "Maria, Lia-Alexandra"]
[Result "1-0"]
[ECO "E39"]
[WhiteElo "2423"]
[BlackElo "1996"]
[Annotator "TA"]
[PlyCount "63"]
[EventDate "2024.03.20"]
[EventType "swiss"]
[EventCountry "ROU"]
[SourceTitle "playchess.com"]
[Source "ChessBase"]
[SourceQuality "1"]
[TimeControl "900+5"]

{[%evp 17,63,16,12,11,25,23,22,18,29,19,27,18,20,15,25,21,27,-1,-4,-12,11,0,13,13,13,20,14,27,75,72,105,70,71,69,53,76,97,85,233,229,206,198,325,193,761,750,985,977]} 1. d4 {[%emt 0:00:04]} Nf6 {[%emt 0:00:24]} 2. c4 {[%emt 0:00:02]} e6 {[%emt 0:00:12]} 3. Nc3 {[%emt 0:00:02]} Bb4 {[%emt 0:00:06]} 4. Qc2 {[%emt 0:00:03]} c5 {[%emt 0:00:19]} 5. dxc5 {[%emt 0:00:06]} O-O {[%emt 0:00:27]} 6. a3 {[%emt 0:00:28]} Bxc5 {[%emt 0:00:25]} 7. Nf3 {[%emt 0:00:03]} b6 {[%emt 0:00:22]} 8. Bg5 {[%emt 0:00:04]} Bb7 {[%emt 0:00:23]} 9. e3 {[%emt 0:00:16]} Be7 {[%emt 0:01:20]} 10. Be2 {[%emt 0:00:25]} d6 {[%emt 0:01:03]} 11. O-O {[%emt 0:00:04]} Nbd7 {[%emt 0:00:02]} 12. Rfd1 {[%emt 0:00:27] The position is equal.} a6 {[%emt 0:00:28]} 13. Rac1 {[%emt 0:02:39]} Qc7 {[%emt 0:00:26]} 14. Qb1 {[%emt 0:00:50]} Rac8 {[%emt 0:01:19]} 15. b4 {[%emt 0:00:42]} Rfd8 {[%emt 0:01:07]} 16. Nd2 {[%emt 0:02:16]} Qb8 {[%emt 0:02:36]} 17. Bf1 {[%emt 0:03:11]} h6 {[%emt 0:02:04]} 18. Bh4 {[%emt 0:00:13]} Ne5 {[%emt 0:00:22]} 19. Nce4 {[%emt 0:02:20]} Nxe4 {[%emt 0:02:04]} (19... d5 {looks sharper.} 20. Nxf6+ Bxf6 21. Bxf6 Ng4) 20. Bxe7 {[%emt 0:00:11]} Nxd2 {[%emt 0:00:24]} 21. Rxd2 {[%emt 0:00:07]} Rd7 {[%emt 0:00:01]} 22. Bh4 {[%emt 0:00:27]} Qc7 {[%emt 0:00:45]} (22... Rdc7 $11) 23. Bg3 $16 {[%emt 0:00:24][%cal Oc4c5]} Qc6 {[%emt 0:00:00]} 24. Bxe5 {[%emt 0:00:41]} dxe5 {[%emt 0:00:02]} 25. Rxd7 {[%emt 0:00:12]} Qxd7 {[%emt 0:00:02]} 26. Rd1 {[%emt 0:00:04]} Qc6 {[%emt 0:00:10]} 27. Qd3 {[%emt 0:00:11]} b5 {[%emt 0:00:18] Black cannot hold the game after this.} 28. cxb5 $18 {[%emt 0:00:19]} axb5 {[%emt 0:00:05]} 29. Qxb5 {[%emt 0:00:03]} Qe4 {[%emt 0:00:06]} (29... Qxb5 {was worth a try.} 30. Bxb5 g5) 30. Qd3 {[%emt 0:00:22]} (30. a4 $142) 30... Qg4 $2 {[%emt 0:00:04] [#]} (30... Qxd3 31. Bxd3 Rc3) 31. h3 {[%emt 0:00:10]} Qg5 {[%emt 0:00:06]} 32. Qd7 {[%emt 0:00:05] Weighted Error Value: White=0.14 (very precise) /Black=0.28 (precise) .  Mistake:       	White=1     	Black=4      Inaccurate:     	White=2     	Black=2      OK:         	White=9     	Black=5      Best:        	White=3     	---} 1-0

[Event "Grand Prix Romania 1st Stage 2024"]
[Site "Bucuresti"]
[Date "2024.03.23"]
[Round "2.24"]
[White "Mikhalevski, Victor"]
[Black "Popescu, Stefan-Claudiu"]
[Result "1-0"]
[ECO "D79"]
[WhiteElo "2514"]
[BlackElo "1980"]
[Annotator "TA"]
[PlyCount "75"]
[EventDate "2024.03.20"]
[EventType "swiss"]
[EventCountry "ROU"]
[SourceTitle "playchess.com"]
[Source "ChessBase"]
[SourceQuality "1"]
[TimeControl "900+5"]

{[%evp 18,75,23,4,36,28,39,39,33,31,80,52,79,62,73,64,112,117,120,121,109,108,357,189,212,84,86,90,82,89,80,78,76,70,79,71,76,75,74,70,111,85,75,77,79,72,84,83,99,85,87,87,116,108,117,117,118,118,111,111]} 1. Nf3 {[%emt 0:00:04]} c5 {[%emt 0:00:17]} 2. g3 {[%emt 0:00:03]} Nc6 {[%emt 0:00:10]} 3. Bg2 {[%emt 0:00:01]} g6 {[%emt 0:00:09]} 4. c3 {[%emt 0:00:03]} Bg7 {[%emt 0:00:06]} 5. d4 {[%emt 0:00:02]} cxd4 {[%emt 0:00:06]} 6. cxd4 {[%emt 0:00:01]} d5 {[%emt 0:00:22]} 7. Nc3 {[%emt 0:00:01]} Nf6 {[%emt 0:00:40]} 8. Ne5 {[%emt 0:00:02]} O-O {[%emt 0:00:45]} 9. O-O {[%emt 0:00:03]} Bf5 {[%emt 0:03:03]} 10. Bf4 {[%emt 0:01:28]} Qb6 {[%emt 0:01:13]} 11. Na4 {[%emt 0:00:23]} Qa5 {[%emt 0:01:05]} 12. Nxc6 {[%emt 0:00:08]} bxc6 {[%emt 0:00:04] White is slightly better.} 13. Rc1 {[%emt 0:00:11][%cal Ob2b3]} Ne4 {[%emt 0:01:25]} (13... Rac8 $14 {is superior.}) 14. a3 {[%emt 0:00:45]} (14. Rxc6 Bd7 15. Bxe4 Bxc6 $17) 14... Rfc8 {[%emt 0:01:12] [#]} 15. g4 $1 {[%emt 0:04:58]} Bd7 {[%emt 0:02:13]} (15... Bxg4 16. f3 $16) 16. h3 {[%emt 0:00:14]} c5 {[%emt 0:00:37]} (16... Nd6 $14) 17. Nxc5 $16 {[%emt 0:00:20]} Nxc5 {[%emt 0:00:02]} 18. Rxc5 {[%emt 0:00:43]} Rxc5 {[%emt 0:00:20]} 19. dxc5 {[%emt 0:00:03]} Bxb2 $2 {[%emt 0:00:17]} (19... Qxc5 $16 20. Be3 (20. Bxd5 Rd8 $16) (20. Qxd5 Qxd5 21. Bxd5 Rd8 $16) 20... Qd6) 20. Bxd5 {[%emt 0:00:58]} (20. Qxd5 $142 Rd8 21. Rd1) 20... Rd8 {[%emt 0:00:01][%cal Od7a4] [#]} 21. Bxf7+ {[%emt 0:01:54]} Kxf7 {[%emt 0:00:02]} 22. Qb3+ {[%emt 0:00:01]} Be6 {[%emt 0:00:02]} 23. Qxb2 {[%emt 0:00:01] Bh6 is the strong threat.} Qxc5 {[%emt 0:00:09]} 24. Be3 {[%emt 0:00:11]} Qc4 {[%emt 0:00:26][%cal Oe6g4]} 25. f3 {[%emt 0:00:56][%cal Of1c1]} ({But not} 25. Bxa7 Bxg4 26. hxg4 Qxg4+ 27. Kh2 Qh5+ 28. Kg3 Qg5+ 29. Kh2 Qh5+ 30. Kg3 Qg5+ 31. Kf3 Qh5+ 32. Kg3 $11) 25... a6 {[%emt 0:00:22][%cal Ba7a6,Ba6b5][%mdl 32]} 26. Rc1 {[%emt 0:00:06]} Qb5 {[%emt 0:00:05]} 27. Qxb5 {[%emt 0:00:49]} axb5 {[%emt 0:00:02][%mdl 4096] Endgame. KRB-KRB} 28. Kf2 {[%emt 0:00:22]} Rd7 {[%emt 0:00:33]} 29. Bh6 {[%emt 0:00:36] White is better.} Ra7 {[%emt 0:00:18]} 30. Rc3 {[%emt 0:00:07]} Bc4 {[%emt 0:00:06]} 31. Re3 {[%emt 0:00:11]} e6 {[%emt 0:00:07]} 32. Bf4 {[%emt 0:00:10]} Rd7 {[%emt 0:00:14]} 33. Re4 {[%emt 0:00:09]} Ra7 {[%emt 0:00:08]} 34. Bd6 {[%emt 0:00:05]} Rd7 {[%emt 0:00:06]} 35. Rf4+ {[%emt 0:00:03]} Kg7 {[%emt 0:00:15]} 36. Bf8+ {[%emt 0:00:02]} Kg8 {[%emt 0:00:03]} 37. Bh6 {[%emt 0:00:02]} Rf7 {[%emt 0:00:02]} 38. Rd4 {[%emt 0:00:01] Weighted Error Value: White=0.20 (precise) /Black=0.25 (precise) .  Loses game:     	---       	Black=1      Mistake:       	White=2     	Black=2      Inaccurate:     	White=1     	Black=3      OK:         	White=13    	Black=8      Best:        	White=1     	Black=2} 1-0